Cogmind - Beta 15 @@@ ROGUE MODE // 2025.05.21 @ 11:26:16 Player: Delton Result: Destroyed by S9-HLA(E) with Gauss Rifle Performance ------------- Evolutions (0) 0 Regions Visited (4) 800 Robots Destroyed (15) 75 Value Destroyed (352) 352 Prototype IDs (6) 120 Alien Tech Used (0) 0 Bonus (800) 800 TOTAL SCORE: 2147 Bonus ------- Registered with UFD 300 Met Optimus in HQ 500 Cogmind --------- Core Integrity 0/250 Matter 450/450 Energy 240/240 System Corruption 0% Temperature Cool (0) Movement Walking (120) Location -8/Scraptown Parts ------- > --- POWER (1) -------- Nuclear Core > --- PROPULSION (2) --- Improved Aluminum Leg Improved Aluminum Leg > --- UTILITY (2) ------ Small Storage Unit Compact Matter Pod > --- WEAPON (2) ------- Assault Cannon Gauss Cannon > --- INVENTORY (8) ---- Aluminum Leg Titanium Leg Disposable Heat Sink Experimental Signal Interpreter Kinecellerator Improved Core Shielding Barrage Gun Peak State ------------ > --- POWER ------------ Nuclear Core > --- PROPULSION ------- Improved Aluminum Leg Improved Aluminum Leg > --- UTILITY ---------- Small Storage Unit Compact Matter Pod > --- WEAPON ----------- Assault Cannon Gauss Cannon > --- INVENTORY -------- Aluminum Leg Disposable Heat Sink Experimental Signal Interpreter Kinecellerator Improved Core Shielding [Rating: 20] Favorites ----------- Power Ion Engine Engine Ion Engine Power Core Nuclear Core Propulsion Aluminum Leg Leg Aluminum Leg Wheel Subdweller Monowheel Utility Compact Matter Pod Device Disposable Heat Sink Storage Compact Matter Pod Processor Signal Interpreter Protection Makeshift Light Armor Plating Weapon Assault Cannon Energy Gun Beam Rifle Ballistic Gun Barrage Gun Ballistic Cannon Assault Cannon Launcher Rocket Launcher Build | -11 -10 -10 -8 -8 ------- Run | Yrd Mat Sub Rec Scr Slots Evolved . | . . . . . Power . | . . . . . Propulsion . | . . . . . Utility . | . . . . . Weapon . | . . . . . Parts Attached 33 | 5 3 15 . 10 Power 4 | 1 . 1 . 2 Engine 3 | 1 . 1 . 1 Core 1 | . . . . 1 Reactor . | . . . . . Propulsion 8 | 2 . 3 . 3 Treads . | . . . . . Leg 6 | 2 . 1 . 3 Wheel 2 | . . 2 . . Hover . | . . . . . Flight . | . . . . . Utility 10 | . 1 6 . 3 Device 5 | . . 5 . . Storage 2 | . . . . 2 Processor 1 | . 1 . . . Hackware . | . . . . . Protection 2 | . . 1 . 1 Artifact . | . . . . . Weapon 11 | 2 2 5 . 2 Energy Gun 3 | 2 . 1 . . Energy Cannon . | . . . . . Ballistic Gun 4 | . 1 3 . . Ballistic Cannon 3 | . . 1 . 2 Launcher 1 | . 1 . . . Special Weapon . | . . . . . Impact Weapon . | . . . . . Slashing Weapon . | . . . . . Piercing Weapon . | . . . . . Special Melee Weapon . | . . . . . Unidentified Prototypes . | . . . . . Parts Lost 12 | . . 8 4 . Power 2 | . . 1 1 . Propulsion 5 | . . 3 2 . Utility 1 | . . . 1 . Weapon 4 | . . 4 . . Highest Loss Streak 4 | . . 4 4 . To Critical Strikes . | . . . . . Average Backups 3 | . 2 3 1 4 Power . | . . 1 . . Propulsion . | . . . . . Utility 1 | . . 1 1 3 Weapon . | . . 1 . . Tool/Special . | . . . . . Unused Backups 8 | . . 3 . 5 Power 1 | . . 1 . . Propulsion 1 | . . . . 1 Utility 4 | . . 1 . 3 Weapon 2 | . . 1 . 1 Tool/Special . | . . . . . Average Slot Usage (%) 90 | . 82 90 60 95 Engine 8 | . 14 13 9 1 Core 4 | . . . . 12 Leg 23 | . 28 23 . 27 Wheel 1 | . . . 23 . Device 6 | . . 12 14 . Storage 10 | . . . . 26 Processor 3 | . 11 5 . . Protection 4 | . . 8 11 . Energy Gun 4 | . 19 5 . . Ballistic Gun 5 | . 7 10 . . Ballistic Cannon 14 | . . 8 . 25 Launcher 1 | . 2 2 . . Peak Build Rating 20 | 5 7 14 11 20 Average Rating 13 | 3 5 11 9 17 On Entrance 4 | . 5 7 10 2 Naked Turns . | . . . . . Heaviest Build 37 | 8 11 17 10 37 Greatest Support 40 | 20 20 40 40 26 Greatest Overweight (x) 1 | . . 1 . 1 Average Overweight (x) . | . . . . . Largest Inventory Capacity 8 | 5 5 5 5 8 Average Capacity 6 | 5 5 5 5 7 Most Carried 7 | 3 4 5 3 7 Average Carried 4 | . 2 4 2 4 Final Capacity 8 | 5 5 5 5 8 Final Carried 7 | . 3 3 2 7 Class Distribution -------------------- 100% | Mutant Dominant Class ---------------- Mutant | -10/Materials Mutant | -10/Subcaves Mutant | -8/Recycling Mutant | -8/Scraptown Resources | -11 -10 -10 -8 -8 ----------- Run | Yrd Mat Sub Rec Scr Matter Collected 863 | 200 90 293 . 280 Remotely . | . . . . . Salvage Created 352 | . 176 176 . . Parts 27 | . 9 18 . . Haulers Intercepted 1 | . 1 . . . Recyclers Shooed . | . . . . . Parts Field Recycled . | . . . . . Retrieved Matter . | . . . . . Parts Self-Destructed 20 | . . 20 . . Prevented . | . . . . . Kills | -11 -10 -10 -8 -8 ------- Run | Yrd Mat Sub Rec Scr Combat Hostiles Destroyed 13 | . 6 7 . . Guns 8 | . 6 2 . . Cannons 2 | . . 2 . . AOE 3 | . . 3 . . Classes Destroyed 5 | . 4 1 . . Hauler 1 | . 1 . . . Watcher 1 | . 1 . . . Swarmer 6 | . 5 1 . . Grunt 1 | . 1 . . . Subdweller 6 | . . 6 . . Best Kill Streak 5 | . 5 2 . . Combat Bots Only 3 | . 3 2 . . Max Kills in Single Turn 1 | . 1 1 . . Gunslinging . | . . . . . Exploded 1 | . . 1 . . Melee . | . . . . . Uniques/NPCs Destroyed . | . . . . . Combat | -11 -10 -10 -8 -8 -------- Run | Yrd Mat Sub Rec Scr Hostile Shots Fired 165 | . 19 125 21 . Missed 60 | . 6 49 5 . Hits 105 | . 13 76 16 . Projectile 105 | . 13 76 16 . Critical Strikes 2 | . . 1 . 1 Damage Taken 1556 | . 112 1293 128 23 Core 264 | . 6 206 29 23 Absorbed by Shields . | . . . . . Core Remaining (%) 100 | 100 . . . . Volleys Fired 42 | . 16 26 . . Largest 2 | . 2 2 . . Hottest 90 | . 90 89 . . Shots Fired 73 | . 31 42 . . Gun 52 | . 31 21 . . Cannon 16 | . . 16 . . Launcher 5 | . . 5 . . Special . | . . . . . Kinetic 39 | . 10 29 . . Thermal 29 | . 21 8 . . Explosive 5 | . . 5 . . Electromagnetic . | . . . . . Robot Hit Streak 9 | . 7 9 . . Robot Miss Streak 3 | . 2 3 . . Penetration Max . | . . . . . Secondary Targets 1 | . 1 . . . Max Gunslinging Chain 1 | . 1 . . . Shots Hit Robots 49 | . 22 27 . . Core Hits 23 | . 12 11 . . Critical Kills 1 | . 1 . . . Critical Parts Destroyed . | . . . . . Critical Strikes 3 | . 1 2 . . Burn 1 | . . 1 . . Destroy 1 | . 1 . . . Blast 1 | . . 1 . . Melee Attacks . | . . . . . Impact . | . . . . . Slashing . | . . . . . Piercing . | . . . . . Sneak Attacks . | . . . . . Combat Hostiles . | . . . . . Follow-up Attacks . | . . . . . Damage Inflicted 990 | . 249 735 6 . Guns 434 | . 249 185 . . Cannons 273 | . . 273 . . Explosions 277 | . . 277 . . Melee . | . . . . . Ramming 6 | . . . 6 . Kinetic 461 | . 44 417 . . Thermal 246 | . 205 41 . . Explosive 277 | . . 277 . . Electromagnetic . | . . . . . Impact . | . . . . . Slashing . | . . . . . Piercing . | . . . . . Highest Corruption . | . . . . . Average Corruption . | . . . . . Corruption Purged . | . . . . . Corruption Blocked . | . . . . . Overload Shots . | . . . . . Overflow Damage . | . . . . . Projectiles . | . . . . . Explosions . | . . . . . Melee . | . . . . . Knockbacks 3 | . . 3 . . Impact . | . . . . . Kinetic 3 | . . 3 . . Secondary . | . . . . . Self-Inflicted Damage 3 | . . . 3 . Shots . | . . . . . Rammed 1 | . . . 1 . Targets Rammed 1 | . . . 1 . Kicked . | . . . . . Crushed . | . . . . . Highest Temperature 108 | . 108 6 . . Average Temperature 38 | . 40 4 . . Received Heat Transfer 363 | . 18 345 . . Siege Activations . | . . . . . Martial Activations . | . . . . . Shielding Activations . | . . . . . Robots Disrupted . | . . . . . Combat Hostiles . | . . . . . Robots Corrupted . | . . . . . Combat Hostiles . | . . . . . Parts Fried . | . . . . . Impact Corruptions . | . . . . . Robots Melted . | . . . . . Combat Hostiles . | . . . . . Parts Melted 1 | . 1 . . . Heat Transferred 754 | . 569 185 . . Parts Sabotaged . | . . . . . Parts Stolen . | . . . . . Parts Stripped . | . . . . . Power Chain Reactions . | . . . . . Alert | -11 -10 -10 -8 -8 ------- Run | Yrd Mat Sub Rec Scr Maximum Alert Level . | . . . . . Low Security (%) 100 | 100 100 . 100 . Level 1 . | . . . . . Level 2 . | . . . . . Level 3 . | . . . . . Level 4 . | . . . . . Level 5 . | . . . . . High Security . | . . . . . Max Security . | . . . . . Peak Influence 94 | . 94 . 15 . Initial . | . . . . . Average 21 | . 40 . . . Influence Increases 249 | . 154 80 15 . Destroy 0b10 Robot/C 140 | . 120 20 . . Destroy 0b10 Robot/NC 10 | . 10 . . . Destroy Leader 24 | . 24 . . . Lose Combat Pursuer 75 | . . 60 15 . Influence Decreases 249 | . 120 114 . 15 Entered New Map 32 | . . 17 . 15 Time Decay 217 | . 120 97 . . Squads Dispatched . | . . . . . Investigation . | . . . . . Extermination . | . . . . . Reinforcement . | . . . . . Assault . | . . . . . Garrison . | . . . . . Intercept . | . . . . . Searches Triggered . | . . . . . Construction Impeded . | . . . . . Haulers Reinforced . | . . . . . Active Scanning Responses . | . . . . . Cargo Convoy Interrupts . | . . . . . Stealth | -11 -10 -10 -8 -8 --------- Run | Yrd Mat Sub Rec Scr Distress Signals 1 | . 1 . . . Communications Jammed . | . . . . . Distress Signals . | . . . . . Times Spotted 30 | . 9 16 2 3 Peak Tracking Total 5 | . 4 5 2 4 Tactical Retreats 3 | . . 2 1 . Traps | -11 -10 -10 -8 -8 ------- Run | Yrd Mat Sub Rec Scr Traps Triggered 2 | . . 2 . . Indirectly . | . . . . . Trap Hack Attempts . | . . . . . Triggered . | . . . . . Disarmed . | . . . . . Reprogrammed . | . . . . . Reused . | . . . . . Traps Extracted . | . . . . . Installed . | . . . . . Triggered . | . . . . . Machines | -11 -10 -10 -8 -8 ---------- Run | Yrd Mat Sub Rec Scr Machines Disabled . | . . . . . Max in Single Turn . | . . . . . Machines Repaired . | . . . . . Machines Dismantled . | . . . . . Machines Sabotaged . | . . . . . Overloaded Fab Kills . | . . . . . Hacking | -11 -10 -10 -8 -8 --------- Run | Yrd Mat Sub Rec Scr Machines Accessed 9 | . . 3 3 3 Terminals 1 | . . . 1 . Fabricators . | . . . . . Repair Stations . | . . . . . Recycling Units 2 | . . . 2 . Scanalyzers . | . . . . . Garrison Access . | . . . . . Total Hacks 20 | . . 6 4 10 Successful 17 | . . 6 1 10 Failed 3 | . . . 3 . Catastrophic 1 | . . . 1 . Database Lockouts . | . . . . . Manual . | . . . . . Terminals 1 | . . . 1 . Fabricators . | . . . . . Repair Stations . | . . . . . Recycling Units 3 | . . . 3 . Scanalyzers . | . . . . . Garrison Access . | . . . . . Terminal Hacks 16 | . . 6 . 10 Record 10 | . . 4 . 6 Robot Analysis 4 | . . . . 4 Open Door 1 | . . 1 . . Release Object 1 | . . 1 . . Fabricator Hacks . | . . . . . Repair Station Hacks . | . . . . . Recycling Unit Hacks 1 | . . . 1 . Report Inventory 1 | . . . 1 . Scanalyzer . | . . . . . Garrison Access Hacks . | . . . . . Unauthorized Hacks . | . . . . . Terminals . | . . . . . Fabricators . | . . . . . Repair Stations . | . . . . . Recycling Units . | . . . . . Scanalyzers . | . . . . . Garrison Access . | . . . . . Data Cores Recovered . | . . . . . Used . | . . . . . Hacking Detections 3 | . . . 3 . Full Trace Events . | . . . . . Feedback Events . | . . . . . Feedback Blocked . | . . . . . Robot Schematics Acquired . | . . . . . Robots Built . | . . . . . Authchips . | . . . . . Time . | . . . . . Total Robot Build Rating . | . . . . . Part Schematics Acquired . | . . . . . Parts Built . | . . . . . Authchips . | . . . . . Time . | . . . . . Total Part Build Rating . | . . . . . Parts Repaired . | . . . . . Time . | . . . . . Parts Recycled . | . . . . . Recycled Matter . | . . . . . Retrieved Matter . | . . . . . Retrieved Components . | . . . . . Parts Scanalyzed . | . . . . . Part Schematics Acquired . | . . . . . Parts Damaged . | . . . . . Bothacking | -11 -10 -10 -8 -8 ------------ Run | Yrd Mat Sub Rec Scr Used RIF Installer . | . . . . . Robots Hacked . | . . . . . Non-combat . | . . . . . Combat . | . . . . . Robot Hacks Applied . | . . . . . Relay Couplers Released . | . . . . . Fabnet Peak Effective % . | . . . . . Robots Rewired . | . . . . . Allies Hacked . | . . . . . Hacks Repelled . | . . . . . Allies | -11 -10 -10 -8 -8 -------- Run | Yrd Mat Sub Rec Scr Total Allies . | . . . . . Largest Group . | . . . . . Highest-Rated Group . | . . . . . Highest-Rated Ally . | . . . . . Total Orders . | . . . . . Ally Attacks . | . . . . . Total Damage . | . . . . . Kills . | . . . . . Allies Corrupted . | . . . . . Allies Melted . | . . . . . Intel | -11 -10 -10 -8 -8 ------- Run | Yrd Mat Sub Rec Scr Active Infowar (turns) 812 | . . 812 . . Optics 812 | . . 812 . . Robot Analysis Total 4 | . . . . 4 Derelict Logs Recovered 2 | . . 1 . 1 Drone Launches . | . . . . . Drone Recoveries . | . . . . . Exploration | -11 -10 -10 -8 -8 ------------- Run | Yrd Mat Sub Rec Scr Turns Passed 4487 | 45 268 2192 189 1793 Spaces Moved 3051 | 35 155 1219 183 1459 Core 134 | 9 . . 24 101 Treads . | . . . . . Legs 2695 | 26 155 1156 . 1358 Wheels 222 | . . 63 159 . Hover . | . . . . . Flight . | . . . . . Fastest Speed 50 | 50 120 110 50 50 Average Speed 125 | 102 120 137 102 120 Slowest Speed 190 | 120 120 190 110 190 Overloaded Moves . | . . . . . Propulsion Burnouts . | . . . . . Robots Hopped . | . . . . . Potential Cave-ins . | . . . . . Cave-ins Triggered . | . . . . . Exploration Rate (%) 44 | 3 27 75 27 91 Regions Visited 4 Branch Regions 3 Pre-discovered Areas 2 | . . 2 . . Known Exits Taken 1 | . 1 . . . Unknown Exits Taken 3 | 1 . 1 1 . Scrap Searched 16 | . . 8 . 8 Spaces Dug . | . . . . . Terrain Destroyed 29 | . . 29 . . Melee . | . . . . . Projectile . | . . . . . AOE 29 | . . 29 . . Terrain Rammed . | . . . . . Walls Destroyed . | . . . . . Machines Disabled . | . . . . . Actions | -11 -10 -10 -8 -8 --------- Run | Yrd Mat Sub Rec Scr Total 3634 | 44 208 1699 184 1499 Wait 440 | . 27 409 . 4 Move 3047 | 34 154 1218 182 1459 Hop . | . . . . . Pick Up 44 | 5 6 15 . 18 Fast Attach 5 | . . 5 . . Attach 27 | 5 2 8 1 11 Detach 1 | . . . . 1 Swap 5 | . 1 3 . 1 Drop 22 | . 2 15 . 5 Fire 42 | . 16 26 . . Melee . | . . . . . Ram 1 | . . . 1 . Kick . | . . . . . Crush . | . . . . . Escape Stasis . | . . . . . Rewire . | . . . . . Trap . | . . . . . Miscellaneous . | . . . . . Route ------- -11/Scrapyard -10/Materials (discovered 2 exits: [*Min] / *Sub) -10/Subcaves (discovered 2 exits: *Mat / *Rec) -8/Recycling -8/Scraptown (discovered 1 exit: [*Fac]) History --------- Turn | Location | Event 8 | -11/Scrapyard | Discovered new exit (range 16) 46 | -11/Scrapyard | Entered Materials 172 | -10/Materials | Discovered new exit (range 16) 305 | -10/Materials | Discovered new exit (range 8) 312 | -10/Materials | Build established: Mutant 313 | -10/Materials | Identified exit to Subcaves 314 | -10/Materials | Entered Subcaves 682 | -10/Subcaves | Discovered new exit (range 13) 736 | -10/Subcaves | Identified exit to Materials 821 | -10/Subcaves | A swath of the cavern ceiling suddenly collapsed 862 | -10/Subcaves | Visited Clippyterm 866 | -10/Subcaves | Learned Factory trap positions 903 | -10/Subcaves | Discovered new exit (range 12) 1103 | -10/Subcaves | Shifting Twisted Machinery released Sub. Beam Cannon 1109 | -10/Subcaves | Shifting Twisted Machinery released Sub. Power Source 1271 | -10/Subcaves | Shifting Twisted Machinery released Scrap Shield 1281 | -10/Subcaves | Shifting Twisted Machinery released Sub. Laser 1392 | -10/Subcaves | Learned location of Recycling (-8) 2036 | -10/Subcaves | Learned location of Zion (-7) 2036 | -10/Subcaves | Met a Zionite searching for "candidates" 2354 | -10/Subcaves | A Subdweller sparked back to life 2354 | -10/Subcaves | A Subdweller sparked back to life 2354 | -10/Subcaves | A Subdweller sparked back to life 2418 | -10/Subcaves | Lost 4 parts (1p3w) 2436 | -10/Subcaves | Core integrity fell below 50% 2504 | -10/Subcaves | Core integrity fell below 20% 2506 | -10/Subcaves | Entered Recycling 2543 | -8/Recycling | Scanned before Scraplab entrance 2690 | -8/Recycling | Entered Scraplab 2694 | -8/Recycling | Discovered new exit (range 3) 2695 | -8/Recycling | Entered Scraptown 2714 | -8/Scraptown | Lost 4 parts (1p2n1u) 2725 | -8/Scraptown | Heard Great Nut preacher, LISTEN AND RECITE! 2851 | -8/Scraptown | Visited Red Mages 2894 | -8/Scraptown | Visited Bundlers 3265 | -8/Scraptown | Visited Symbiants 3309 | -8/Scraptown | Visited CPS Storage 3352 | -8/Scraptown | Visited Fellowship of the Rings 3381 | -8/Scraptown | Visited Shadow of the Wyrm 3430 | -8/Scraptown | Scanned Subdweller tech in exchange for log data 3563 | -8/Scraptown | Discovered new exit (range 11) 3660 | -8/Scraptown | Visited The Evicted 3681 | -8/Scraptown | Visited UFD Registry 3681 | -8/Scraptown | Registered with UFD as "Hardpod" 3708 | -8/Scraptown | Visited Infowarlord's Domain 3717 | -8/Scraptown | Found Exp. Signal Interpreter 3742 | -8/Scraptown | Visited Science Testing Area 3764 | -8/Scraptown | Visited Scrap Suit Storage 3798 | -8/Scraptown | Delivered Scrap Shield to a Scientist 3962 | -8/Scraptown | Visited Abandonware Association 3976 | -8/Scraptown | Learned abandonware demo "REPAIR.EXE" 3976 | -8/Scraptown | Learned abandonware demo "MELTYB.EXE" 4007 | -8/Scraptown | Visited Supply Room 4035 | -8/Scraptown | Visited A0-MCA Data Center 4043 | -8/Scraptown | Given an A- rating by A0-MCA 4058 | -8/Scraptown | Visited Cartography Club 4254 | -8/Scraptown | Visited Analyses Database 4285 | -8/Scraptown | Visited Curators Association 4333 | -8/Scraptown | Visited DA-N13 Charitable Foundation 4338 | -8/Scraptown | Found DCF Scrap (29 items) 4432 | -8/Scraptown | Met Optimus 4432 | -8/Scraptown | Accepted into 0bPrime 4485 | -8/Scraptown | Civil war broke out across Scraptown 4488 | -8/Scraptown | Destroyed by S9-HLA(E) with Gauss Rifle Last Messages --------------- 04485_ ANNOUNCEMENT: The Council has discovered that 0bPrime has been recruiting others in a plan that puts all of Scraptown in danger. 04485_ ANNOUNCEMENT: Evidence is being transmitted to you now... 04485_ ANNOUNCEMENT: This news will hit some of you hard, but given the circumstances we have no choice but to apprehend Optimus and allies. 04485_ Slug penetrates G2-O89(r). 04485_ G2-O89(r) destroyed. 04485_ Slug penetrates IT-8Q0(r). 04487_ Optimus: "Bah, right when we're so close. Don't worry Hardpod, they can't stop us now. Get out of here and do your job, we'll deal with this." 04487_ Bolt penetrates Machine. 04488_ Slug penetrates MR-HY6(r). 04488_ Optimus Tactical Coordination Suite ripped off. 04488_ Penetrated by Slug. Map ----- +----------------------------------------------------+ | | | | | | | | | ?????????????????????????????????????????????????? | | ?????????????????????????????????????????????????? | | ?????????????????????????????????????????????????? | | ?????????????????????????????????????????????????? | | ?????????????????????????????????????????????????? | | ?????????????????????????????????????????????????? | | ?????????????????????????????????????????????????? | | ?????????????????????????????????????????????????? | | ?????????????????????????????????????????????????? | | ?????????????????????????????????????????????????? | | ?????????????????????????????????????????????????? | | ?????????????????????????????????????????????????? | | ?????????????????????????????????????????????????? | | ????????????????????????####?????????????????????? | | ???????????????????????## ##????????????????????? | | ???????????????????????? E ##???????????????????? | | ???????????????????????? E ???????????????????? | | ???????????????????????? ????????????????????? | | ???????????????????????? ?????????????????????? | | ????????????????????????# #?????????????????????? | | ????###??##?????????????# #?????????????????????? | | ????#"###"#?????????????#@ ###???????????????????? | | ?#### "]" ####??????????# # ####????????????????? | | ?#" """ "#??????????# # # #????????????????? | | ??#"" ""#???????????# # # ##????????????????? | | ###[" "!###########?#3 # ###??????????????? | | ##"" ""##""""""""#?#rr# ####X#??????????????? | | =#" "#" X " ""#?# # ## ###??????????????? | | ##"" ""##" ""#?# # #??????????????? | | ##&" "!##"" """#?# ###### #######????????? | | ##"" ""## #?# # #????????? | | #" "# #?# c# #????????? | | ####### ########### ###?#/%## ###########????????? | | ####### ########### ##### !## #############??????? | | """"""" """"""""""" """"" "" "##""""""""""??????? | | "## """""""""#?????? | | "## """""""""#?????? | | "## " """"#?????? | | "## """"#?????? | | !""""#?????? | | """"""""""""""""""""""""" "## """""""""#?????? | | """"""""""""""""""""""""" "## ""!""""""#?????? | | ##### ################"" "## """""""""??????? | | ##????????#"" "############??????? | | X"#????????#"" "## "" #?????????? | | "" "" ##????????#"" "## "" #?????????? | +----------------------------------------------------+ Best States ------------- Heat Dissipation 25 Coolant Potential 50 Energy Generation 14 Energy Capacity 250 Matter Stores 450 Matter Capacity 450 Sight Range 21 Terrain Scan Density 10 Armor Coverage 800 Evasion (%) 55 Item Schematics ----------------- None Robot Schematics ------------------ None Fabricated ------------ Nothing Repaired ---------- Nothing Alien Tech Used ----------------- None Achievements -------------- None Challenges ------------ None Game ------ Seed TerrainWaveCyclogen Manual? 0 Play Time 00:29:55 Cumulative 42.5 hours Start 2025.05.21 @ 10:50:52 End 2025.05.21 @ 11:26:16 Sessions 1 Manual Loads 0 Difficulty Rogue Special Mode None Game No. 89 Rogue 89 Adventurer 0 Explorer 0 Win Type - Total 0 Types 0/0/0/0/0/0/0/0/0/0 Lore% 54 Gallery% 41 Achievement% 37 Wizard Run 0 Options --------- Layout 1 ASCII 0 Keyboard 0 Movement Mouse Keybinds 0 Fullscreen 1 Font 24/Proggy Map View 50x35 Zoom Use 0% Tactical HUD 1 Map Filters NONE Filters NONE Steam 1 RUN: 9240d2ea-5d7d-4af0-b964-4e8eea7fc5e7